bitfinex-derivatives/quotes_SOLF0:USTF0_20251020
["timestamp","ask_amount","ask_price","bid_price","bid_amount"]
[1760953440720,7.3746,192.89,192.82,1.42]
[1760953442415,27.0,192.93,192.81,43.04]
[1760953442907,2.71,192.92,192.81,43.04]
[1760953443109,27.0,192.93,192.81,43.04]
[1760953443315,2.71,192.92,192.81,43.04]
[1760953443510,27.0,192.93,192.81,43.04]
[1760953443710,2.71,192.92,192.81,44.46]
[1760953444116,2.71,192.92,192.81,1.42]
[1760953444317,4.6642,192.9,192.82,1.42]
[1760953444510,4.6642,192.9,192.83,43.04]
[1760953444712,4.6642,192.9,192.84,1.42]
[1760953445017,7.3737,192.92,192.84,6.0854]
[1760953445218,7.3737,192.92,192.84,49.1254]
[1760953445923,4.6641,192.91,192.84,49.1254]
[1760953447124,4.6641,192.91,192.84,6.0854]
[1760953447516,4.6641,192.91,192.84,38.2454]
[1760953447822,4.6641,192.91,192.85,43.04]
[1760953448022,4.6641,192.91,192.84,6.0854]
[1760953448224,4.6641,192.91,192.85,43.04]
[1760953449024,4.6641,192.91,192.84,6.0854]
[1760953449323,4.6643,192.9,192.84,6.0854]
[1760953450017,4.6643,192.9,192.84,40.1654]
[1760953450321,4.6643,192.9,192.84,6.0854]
[1760953450519,4.6643,192.9,192.84,40.1654]
[1760953450715,4.6643,192.9,192.84,6.0854]
[1760953451112,4.6643,192.9,192.85,1.42]
[1760953451422,4.6643,192.9,192.84,38.7454]
[1760953451622,7.3738,192.92,192.85,6.0853]
[1760953451811,7.3738,192.92,192.85,49.1053]
[1760953452011,7.3738,192.92,192.85,44.44]
[1760953452212,7.3738,192.92,192.86,4.665]
[1760953452418,43.1,192.98,192.86,4.665]
[1760953452419,4.6633,192.94,192.87,1.42]
[1760953452723,2.71,192.95,192.88,1.42]
[1760953452922,2.71,193.0,192.88,1.42]
[1760953453627,9.3213,193.05,192.89,4.6642]
[1760953453924,24.84422618,193.05,192.89,4.6642]
[1760953454120,2.76,193.04,192.9,44.43]
[1760953454324,2.76,193.05,192.91,1.41]
[1760953454524,7.4218,193.0,192.91,6.0738]
[1760953454822,7.4218,193.0,192.92,1.41]
[1760953455024,4.6613,193.02,192.94,1.41]
[1760953457415,4.6613,193.02,192.94,6.073]
[1760953457617,2.76,193.03,192.94,1.41]
[1760953457916,27.0,193.14,192.94,1.41]
[1760953457917,27.0,193.1,192.97,4.6623]
[1760953458117,2.63,193.09,192.98,1.41]
[1760953459123,7.2904,193.06,192.98,1.41]
[1760953459723,2.63,193.06,192.98,1.41]
[1760953461029,2.63,193.1,193.0,1.41]
[1760953463226,2.63,193.08,193.0,1.41]
[1760953463817,2.63,193.08,193.0,6.0715]
[1760953465028,2.63,193.08,193.0,49.0915]
[1760953465423,2.63,193.08,193.0,6.0715]
[1760953465621,2.63,193.08,193.0,49.0915]
[1760953465826,2.63,193.08,193.0,1.41]
[1760953466132,2.63,193.06,193.0,1.41]
[1760953471535,2.63,193.07,192.98,4.662]
[1760953471923,2.63,193.07,192.98,6.072]
[1760953472931,2.63,193.07,192.99,4.6619]
[1760953473330,2.63,193.06,192.99,4.6619]
[1760953473525,2.63,193.05,192.99,4.6619]
[1760953474731,42.14694453,193.14,192.98,1.41]
[1760953474927,29.63,193.13,192.98,1.41]
[1760953475732,27.0,193.12,192.95,4.663]
[1760953475935,2.63,193.11,192.95,4.663]
[1760953476135,27.0,193.12,192.95,4.663]
[1760953476438,2.63,193.0,192.95,4.663]
[1760953476640,2.63,193.0,192.95,6.073]
[1760953477636,2.63,193.0,192.95,4.663]
[1760953477831,2.63,193.0,192.96,1.41]
[1760953478736,2.63,193.0,192.95,4.663]
[1760953478938,2.63,193.0,192.96,1.41]
[1760953479140,2.63,193.01,192.95,4.663]
[1760953480042,7.2917,193.01,192.93,4.6635]
[1760953480539,2.63,193.01,192.87,6.36731684]
[1760953480734,2.63,193.01,192.88,1.41]
[1760953481040,2.63,193.01,192.89,43.0]
[1760953481241,2.63,193.01,192.9,1.41]
[1760953481942,2.63,193.01,192.94,4.663]
[1760953482143,2.63,193.01,192.94,6.073]
[1760953490340,2.63,193.01,192.95,4.6629]
[1760953491748,4.6609,193.04,192.97,1.41]
[1760953491938,7.4909,193.04,192.97,1.41]
[1760953492741,2.83,193.02,192.97,1.41]
[1760953493053,4.6612,193.03,192.97,1.41]
[1760953493247,2.83,193.02,192.97,1.41]
[1760953493447,4.6612,193.03,192.97,1.41]
[1760953493647,2.83,193.01,192.97,1.41]
[1760953493843,2.83,193.02,192.97,1.41]
[1760953494251,4.6612,193.03,192.97,1.41]
[1760953494554,2.83,193.02,192.96,4.6627]
[1760953494752,4.6615,193.02,192.96,4.6627]
[1760953495053,4.6615,193.02,192.96,6.0727]
[1760953495248,36.3195,193.09,192.94,4.6631]
[1760953495454,27.0,193.08,192.94,4.6631]
[1760953495953,2.83,193.07,192.94,4.6631]
[1760953496153,27.0,193.08,192.94,4.6631]
[1760953496352,2.83,193.06,192.92,4.6636]
[1760953496741,12.1509,193.06,192.91,6.36731684]
[1760953496947,9.3209,193.06,192.9,6.36731684]
[1760953497150,2.83,193.05,192.89,1.41]
[1760953497452,4.6627,192.97,192.9,4.6642]
[1760953497665,2.83,192.96,192.9,4.6642]
[1760953498067,2.83,192.96,192.89,1.41]
[1760953498560,2.83,193.04,192.88,11.03191684]
[1760953498952,4.81304461,193.05,192.88,11.03191684]
[1760953499156,2.83,193.04,192.88,11.03191684]
[1760953499665,4.6629,192.96,192.89,4.6643]
[1760953499869,7.4929,192.96,192.89,6.0743]
[1760953500770,2.83,193.04,192.87,6.36731684]
[1760953500964,2.83,193.01,192.86,4.665]
[1760953501264,2.83,192.92,192.85,1.41]
[1760953503171,2.83,192.92,192.86,1.41]
[1760953505270,2.83,192.99,192.83,6.0758]
[1760953505463,2.83,192.97,192.83,1.41]
[1760953505772,27.0,192.96,192.83,1.41]
[1760953506071,2.83,192.95,192.83,1.41]
[1760953506373,27.0,192.94,192.81,4.6664]
[1760953506569,2.83,192.93,192.82,1.41]
[1760953507369,27.0,192.94,192.82,1.41]
[1760953507370,7.4947,192.88,192.82,1.41]
[1760953507567,7.4947,192.88,192.81,4.6664]
[1760953507965,2.83,192.86,192.79,1.41]
[1760953508163,2.83,192.86,192.74,9.60816682]
[1760953508164,2.83,192.93,192.76,7.77731684]
[1760953508364,27.0,192.94,192.76,7.77731684]
[1760953508963,4.6659,192.84,192.76,12.44491684]
[1760953509170,7.4959,192.84,192.76,12.44491684]
[1760953509372,7.4959,192.84,192.76,6.0776]
[1760953511369,2.83,192.87,192.78,1.41]
[1760953512574,2.83,192.87,192.81,1.41]
[1760953513069,2.83,192.93,192.81,1.41]
[1760953513973,2.83,192.93,192.83,4.6659]
[1760953514171,2.83,192.93,192.84,1.42]
[1760953515375,2.86,192.88,192.8,1.42]
[1760953517874,27.0,192.95,192.77,49.1073]
[1760953518172,7.3154,192.86,192.77,49.1073]
[1760953518676,2.65,192.84,192.77,1.42]
[1760953519171,4.666,192.83,192.74,49.1079]
[1760953519374,15.56,192.91,192.74,43.02]
[1760953519677,45.21,192.91,192.71,1.42]
[1760953520469,2.65,192.88,192.71,1.42]
[1760953521675,2.65,192.78,192.71,1.42]
[1760953524175,9.3289,192.9,192.71,1.42]
[1760953524176,4.6664,192.82,192.72,4.6685]
[1760953524371,4.6664,192.82,192.71,1.42]
[1760953524372,2.65,192.82,192.73,1.42]
[1760953524770,2.65,192.9,192.73,1.42]
[1760953524969,2.65,192.88,192.74,1.42]
[1760953526078,7.3157,192.84,192.75,4.6678]
[1760953526975,7.3157,192.84,192.76,1.42]
[1760953528676,27.0,192.89,192.73,43.04]
[1760953528874,27.0,192.88,192.73,43.04]
[1760953529071,2.65,192.87,192.72,1.42]
[1760953529580,2.65,192.85,192.72,1.42]
[1760953529978,4.6671,192.79,192.72,1.42]
[1760953530178,7.3171,192.79,192.72,1.42]
[1760953536975,4.6672,192.78,192.72,1.42]
[1760953542478,2.65,192.79,192.72,6.0885]
[1760953543988,4.6673,192.78,192.72,6.0885]
[1760953546783,2.65,192.79,192.72,6.0885]
[1760953547591,4.6673,192.78,192.72,6.0885]
[1760953548793,2.65,192.79,192.73,4.6683]
[1760953550481,7.3171,192.79,192.73,4.6683]
[1760953551180,4.6666,192.81,192.72,1.42]
[1760953551888,4.6666,192.81,192.76,1.42]
[1760953552192,4.6666,192.81,192.69,43.04]
[1760953552193,2.77,192.82,192.73,1.42]
[1760953552788,2.77,192.82,192.7,43.04]
[1760953552789,2.77,192.82,192.75,9.60816682]
[1760953552992,2.77,192.82,192.76,6.0875]
[1760953553789,2.77,192.82,192.76,15.69566682]
[1760953555495,7.4356,192.85,192.77,1.42]
[1760953556889,4.6659,192.84,192.78,4.6671]
[1760953559994,2.77,192.85,192.81,1.42]
[1760953560196,2.77,192.85,192.75,42.38816682]
[1760953560493,2.77,192.85,192.79,1.42]
[1760953560690,27.0,192.95,192.76,9.60816682]
[1760953560691,4.79157684,192.94,192.76,9.60816682]
[1760953560891,30.76924825,192.93,192.75,9.60816682]
[1760953561096,6.53924825,192.92,192.76,1.42]
[1760953561293,3.76924825,192.91,192.76,1.42]
[1760953561494,6.53924825,192.9,192.76,1.42]
[1760953561698,2.77,192.9,192.76,1.42]
[1760953562095,2.77,192.85,192.77,4.6673]
[1760953562496,2.77,192.85,192.79,1.42]
[1760953562699,9.63821402,192.98,192.79,1.42]
[1760953562700,2.77,192.96,192.8,1.42]
[1760953562901,2.77,192.94,192.8,1.42]
[1760953563089,2.77,192.89,192.8,1.42]
[1760953564094,2.77,192.89,192.8,6.0867]
[1760953564295,2.77,192.88,192.8,6.0867]
[1760953567800,4.6647,192.89,192.8,6.0867]
[1760953568008,2.77,192.95,192.77,6.0872]
[1760953568207,8.55997503,192.94,192.77,6.0872]
[1760953568508,30.76839819,192.93,192.77,6.0872]
[1760953568704,2.77,192.91,192.77,6.0872]
[1760953569009,2.77,192.85,192.77,6.0872]
[1760953570097,2.77,192.85,192.78,1.42]
[1760953574702,2.77,192.85,192.79,4.6669]
[1760953574906,7.4348,192.88,192.8,1.42]
[1760953575800,2.77,192.88,192.81,4.6664]
[1760953576009,4.6643,192.9,192.82,1.42]
[1760953576398,2.77,192.89,192.82,1.42]
[1760953576995,2.77,192.89,192.82,6.086]
[1760953578409,2.72,192.88,192.82,6.086]
[1760953578612,2.72,192.88,192.7,10.24063644]
[1760953578613,2.72,192.88,192.8,4.6666]
[1760953579113,2.72,192.87,192.8,4.6666]
[1760953579509,2.72,192.91,192.76,1.42]
[1760953579713,2.72,192.89,192.73,1.42]
[1760953580014,2.72,192.87,192.73,1.42]
[1760953581115,2.72,192.81,192.73,6.0882]
[1760953581410,2.72,192.81,192.73,1.42]
[1760953581907,4.6667,192.8,192.73,1.42]
[1760953582404,2.72,192.79,192.73,1.42]
[1760953583308,7.3871,192.79,192.73,1.42]
[1760953583514,7.3871,192.79,192.7,16.59980326]
[1760953584107,2.72,192.78,192.7,16.59980326]
[1760953585009,2.72,192.78,192.7,6.99163644]
[1760953585814,2.72,192.78,192.71,4.6687]
[1760953588114,27.0,192.88,192.69,9.60816682]
[1760953588115,2.72,192.87,192.69,9.60816682]
[1760953588304,51.15309764,192.86,192.65,9.60816682]
[1760953588504,4.6681,192.75,192.65,6.0901]
[1760953588803,2.72,192.8,192.65,6.0901]
[1760953589008,42.9272365,192.8,192.65,6.0901]
[1760953589210,4.6686,192.73,192.65,6.0901]
[1760953590618,4.6686,192.73,192.66,1.42]
[1760953594419,2.72,192.72,192.66,1.42]
[1760953595010,7.3888,192.72,192.66,1.42]
[1760953597619,2.72,192.72,192.66,1.42]
[1760953600222,7.3877,192.76,192.66,1.42]
[1760953600419,2.72,192.76,192.66,1.42]
[1760953601012,2.72,192.73,192.66,1.42]
[1760953602720,7.3886,192.73,192.66,1.42]
[1760953605923,2.72,192.72,192.64,0.90295797]
[1760953607124,2.72,192.7,192.64,0.90295797]
[1760953611524,4.669,192.71,192.65,1.42]
[1760953612321,7.3385,192.73,192.65,6.0902]
[1760953612721,27.0,192.79,192.65,6.0902]
[1760953613021,2.67,192.77,192.65,6.0902]
[1760953613725,27.0,192.78,192.67,1.42]
[1760953613930,2.67,192.77,192.67,1.42]
[1760953614124,4.6688,192.72,192.67,1.42]
[1760953614327,2.67,192.71,192.66,4.6699]
[1760953614523,2.67,192.71,192.64,5.57345797]
[1760953615028,7.339,192.71,192.64,5.57345797]
[1760953615327,2.67,192.7,192.64,4.6705]
[1760953618534,7.3393,192.7,192.63,1.42]
[1760953619633,27.0,192.77,192.61,0.90319232]
[1760953619634,2.67,192.68,192.61,0.90319232]
[1760953620026,2.67,192.68,192.49,156.56409763]
[1760953620027,2.67,192.68,192.57,1.42]
[1760953620231,2.67,192.64,192.57,2.32343852]
[1760953621027,27.0,192.74,192.58,1.42]
[1760953621028,2.67,192.72,192.58,1.42]
[1760953621437,2.67,192.73,192.6,1.42]
[1760953621734,6.42211904,192.73,192.57,2.32343852]
[1760953622828,6.42211904,192.73,192.58,1.42]
[1760953623328,4.67,192.67,192.59,4.6716]
[1760953623530,2.67,192.67,192.59,4.6716]
[1760953623737,2.67,192.67,192.58,1.42]
[1760953625136,2.67,192.64,192.58,1.42]
[1760953626035,7.3407,192.64,192.58,1.42]
[1760953626938,4.671,192.63,192.58,1.42]
[1760953627139,2.67,192.61,192.58,1.42]
[1760953627831,2.67,192.62,192.56,6.0923]
[1760953628029,2.67,192.62,192.54,0.90352061]
[1760953628939,4.6715,192.61,192.54,0.90352061]
[1760953629138,2.67,192.67,192.53,1.42]
[1760953629329,33.42720894,192.67,192.53,1.42]
[1760953629639,2.67,192.65,192.53,1.42]
[1760953630023,2.67,192.65,192.5,0.90369659]
[1760953630024,4.6714,192.61,192.5,2.32369659]
[1760953630232,2.67,192.65,192.5,2.32369659]
[1760953630628,4.6722,192.58,192.5,2.32369659]
[1760953630834,2.67,192.57,192.5,2.32369659]
[1760953631437,2.67,192.57,192.5,6.99749659]
[1760953631934,2.67,192.57,192.51,1.42]
[1760953634236,4.6716,192.6,192.53,1.43]
[1760953638241,2.62,192.61,192.53,6.103]
[1760953638441,2.83,192.6,192.53,6.103]
[1760953638634,2.83,192.66,192.53,6.103]
[1760953638938,4.6717,192.6,192.53,6.103]
[1760953639142,2.83,192.59,192.53,6.103]
[1760953640138,4.6717,192.6,192.53,4.673]
[1760953640346,2.83,192.59,192.54,1.42]
[1760953640542,2.83,192.59,192.53,4.673]
[1760953640743,4.6711,192.62,192.51,1.42]
[1760953641230,4.6711,192.62,192.52,43.06]
[1760953641435,2.83,192.63,192.56,1.42]
[1760953641634,2.83,192.71,192.56,1.42]
[1760953642030,3.74724583,192.76,192.62,4.6709]
[1760953642447,2.83,192.75,192.59,1.42]
[1760953642634,27.0,192.77,192.63,4.6706]
[1760953642832,2.83,192.76,192.63,4.6706]
[1760953643542,2.83,192.72,192.64,1.42]
[1760953644442,4.6698,192.68,192.57,34.34]
[1760953644646,2.83,192.67,192.57,34.34]
[1760953644836,4.6698,192.68,192.57,34.34]
[1760953645145,2.83,192.76,192.56,1.42]
[1760953645946,6.57768567,192.76,192.56,1.42]
[1760953646148,2.83,192.76,192.56,1.42]
[1760953646334,6.57768567,192.76,192.56,1.42]
[1760953646657,31.82688927,192.78,192.5,0.90369659]
[1760953646658,2.83,192.74,192.59,1.42]
[1760953647250,4.67,192.67,192.59,1.42]
[1760953647546,7.5,192.67,192.59,1.42]
[1760953648142,7.5,192.67,192.6,1.42]
[1760953649350,2.83,192.67,192.6,1.42]
[1760953649536,2.83,192.67,192.56,12.42]
[1760953649537,2.83,192.74,192.62,1.42]
[1760953651055,7.4989,192.71,192.62,6.0909]
[1760953651352,27.0,192.75,192.63,1.42]
[1760953651353,29.83,192.75,192.63,1.42]
[1760953651553,2.83,192.75,192.63,1.42]
[1760953652048,4.6682,192.74,192.65,4.6701]
[1760953652245,4.6682,192.74,192.66,1.42]
[1760953654242,4.6682,192.74,192.66,6.0899]
[1760953654746,2.83,192.75,192.69,4.6694]
[1760953655052,27.0,192.84,192.69,6.0894]
[1760953655349,2.83,192.77,192.69,6.0894]
[1760953656648,2.83,192.77,192.69,4.6694]
[1760953656851,2.83,192.77,192.7,1.42]
[1760953657442,2.83,192.81,192.72,4.6684]
[1760953657640,2.83,192.81,192.73,1.42]
[1760953658155,4.6669,192.8,192.73,1.42]
[1760953658843,2.83,192.83,192.69,1.42]
[1760953659048,2.83,192.81,192.69,1.42]
[1760953659255,6.57897787,192.81,192.69,1.42]
[1760953659753,2.83,192.8,192.61,1.42]
[1760953660547,2.83,192.79,192.62,4.6708]
[1760953660756,3.74897787,192.8,192.62,4.6708]
[1760953661052,2.83,192.79,192.63,1.42]
[1760953661954,2.83,192.71,192.63,1.42]
[1760953663044,7.4991,192.71,192.63,1.42]
[1760953663445,2.83,192.71,192.63,1.42]
[1760953664255,4.6693,192.7,192.63,1.42]
[1760953664453,2.83,192.8,192.63,1.42]
[1760953664651,6.57854947,192.8,192.63,1.42]
[1760953664857,4.6683,192.74,192.63,1.42]
[1760953665060,7.4983,192.74,192.63,1.42]
[1760953666055,7.4983,192.74,192.61,20.8]
[1760953666056,7.4983,192.74,192.67,6.0898]
[1760953668158,7.4983,192.74,192.67,1.42]
[1760953668660,4.6685,192.73,192.67,1.42]
[1760953669965,2.83,192.74,192.67,1.42]
[1760953670256,4.6679,192.75,192.68,4.6694]
[1760953673661,7.3775,192.77,192.69,4.6692]
[1760953673866,7.3775,192.77,192.7,1.42]
[1760953674060,2.71,192.77,192.7,1.42]
[1760953674969,4.6678,192.76,192.7,1.42]
[1760953675666,2.71,192.74,192.7,1.42]
[1760953675866,2.71,192.74,192.67,4.6697]
[1760953677066,2.71,192.74,192.69,4.6693]
[1760953677266,2.71,192.74,192.69,6.0893]
[1760953677570,2.71,192.74,192.7,1.42]
[1760953677866,2.71,192.74,192.69,4.6693]
[1760953678166,2.71,192.74,192.7,1.42]
[1760953678566,2.71,192.77,192.7,6.0889]
[1760953678860,2.71,192.77,192.7,1.42]
[1760953679066,43.08,192.85,192.71,4.6688]
[1760953679067,2.71,192.78,192.71,4.6688]
[1760953680471,7.3774,192.78,192.71,4.6688]
[1760953682170,2.71,192.78,192.72,6.0885]
[1760953684581,7.3766,192.81,192.74,1.42]
[1760953685278,2.71,192.81,192.74,1.42]
[1760953685466,2.71,192.84,192.74,1.42]
[1760953685877,2.71,192.81,192.72,4.6686]
[1760953686070,27.0,192.85,192.72,4.6686]
[1760953686274,30.76133731,192.84,192.72,4.6686]
[1760953686473,2.71,192.82,192.72,4.6686]
[1760953686974,4.6671,192.79,192.72,4.6686]
[1760953687282,2.71,192.78,192.72,4.6686]
[1760953689279,2.71,192.78,192.7,6.089]
[1760953691074,4.6676,192.77,192.7,6.089]
[1760953692784,2.71,192.78,192.7,1.42]
[1760953694186,2.71,192.78,192.72,4.6684]
[1760953695977,2.71,192.78,192.7,1.42]
[1760953695978,7.3774,192.78,192.7,6.089]
[1760953696690,7.3774,192.78,192.71,4.6687]
[1760953697383,7.3774,192.78,192.72,4.6684]
[1760953697588,2.71,192.78,192.72,6.0884]
[1760953699783,7.4263,192.82,192.69,11.02816682]
[1760953699988,7.4263,192.82,192.71,1.42]
[1760953700990,7.4263,192.82,192.75,4.6677]
[1760953703289,2.76,192.8,192.74,1.42]
[1760953704990,2.76,192.77,192.71,4.6688]
[1760953706992,2.76,192.77,192.72,4.6685]
[1760953707192,4.6668,192.8,192.73,1.42]
[1760953708983,4.6668,192.8,192.74,4.668]
[1760953709587,4.6668,192.8,192.73,1.42]
[1760953709787,4.6668,192.8,192.73,6.0883]
[1760953710090,7.4271,192.79,192.73,6.0883]
[1760953710688,7.4271,192.79,192.73,1.42]
[1760953710885,7.4271,192.79,192.71,11.12024677]
[1760953710886,2.76,192.77,192.71,11.12024677]
[1760953712391,2.76,192.77,192.71,12.54024677]
[1760953713389,2.76,192.77,192.7,6.45144677]
[1760953713390,2.76,192.76,192.7,6.45144677]
[1760953713592,2.76,192.76,192.69,12.54074677]
[1760953714384,2.76,192.76,192.7,6.45144677]
[1760953714592,4.6675,192.77,192.71,1.42]
[1760953714792,4.6675,192.77,192.71,7.87144677]
[1760953715989,4.6675,192.77,192.71,12.54014677]
[1760953716896,7.427,192.79,192.72,4.6684]
[1760953717097,7.427,192.79,192.73,1.42]
[1760953717899,4.6666,192.81,192.74,1.42]
[1760953718191,4.6666,192.81,192.74,7.87144677]
[1760953718601,4.6666,192.81,192.74,1.42]
[1760953719001,4.6666,192.81,192.75,4.6677]
[1760953719597,7.4269,192.8,192.74,1.42]
[1760953719799,2.76,192.79,192.73,47.7083]
[1760953719992,2.76,192.79,192.73,4.6683]
[1760953720305,2.76,192.79,192.73,7.87144677]
[1760953720501,2.76,192.79,192.74,11.11944677]
[1760953720698,2.76,192.79,192.75,1.42]
[1760953722001,2.76,192.79,192.75,6.0878]
[1760953722803,27.0,192.87,192.76,1.42]
[1760953722804,2.76,192.86,192.76,1.42]
[1760953723012,2.76,192.86,192.76,7.87144677]
[1760953723302,2.76,192.81,192.74,6.45144677]
[1760953725104,4.6667,192.8,192.74,6.45144677]
[1760953725299,4.6667,192.8,192.74,11.11944677]
[1760953725501,2.76,192.81,192.75,6.45144677]
[1760953726105,7.4266,192.81,192.75,6.45144677]
[1760953728001,2.76,192.81,192.75,6.45144677]
[1760953728202,2.76,192.81,192.77,1.42]
[1760953728706,2.7,192.84,192.77,1.42]
[1760953730002,2.7,192.81,192.77,1.42]
[1760953730214,2.7,192.8,192.77,1.42]
[1760953733108,2.7,192.83,192.77,4.6672]
[1760953733310,2.7,192.83,192.76,1.42]
[1760953733311,2.7,192.83,192.76,7.87144677]
[1760953733512,2.7,192.83,192.77,1.42]
[1760953733708,2.7,192.83,192.78,6.45144677]
[1760953733912,2.7,192.86,192.79,1.42]
[1760953734414,4.6657,192.85,192.79,1.42]
[1760953734610,2.7,192.84,192.79,1.42]
[1760953734912,2.7,192.83,192.79,1.42]
[1760953737204,4.6657,192.85,192.79,1.42]
[1760953737408,4.6657,192.85,192.77,6.45144677]
[1760953737610,2.7,192.83,192.76,54.15904677]
[1760953737809,2.7,192.83,192.76,11.11904677]
[1760953738009,2.7,192.83,192.76,55.55904677]
[1760953738409,2.7,192.83,192.76,12.53904677]
[1760953738610,2.7,192.82,192.76,12.53904677]
[1760953738810,2.7,192.82,192.76,6.0876]
[1760953739617,2.7,192.82,192.76,12.53904677]
[1760953740011,2.7,192.82,192.76,6.0876]
[1760953740418,42.46273253,192.91,192.75,43.02]
[1760953740419,47.28990323,192.91,192.78,6.087]
[1760953740610,47.28990323,192.91,192.78,1.42]
[1760953740611,2.7,192.85,192.78,1.42]
[1760953741218,4.665,192.88,192.78,1.42]
[1760953741521,4.665,192.88,192.79,44.46]
[1760953741720,4.665,192.88,192.8,1.42]
[1760953742615,2.7,192.89,192.81,1.42]
[1760953743315,2.7,192.89,192.83,1.42]
[1760953743508,2.7,192.95,192.83,1.42]
[1760953743708,4.6633,192.94,192.86,4.665]
[1760953743909,4.6633,192.94,192.87,1.42]
[1760953746625,7.3637,192.93,192.87,1.42]
[1760953747425,2.7,192.93,192.87,1.42]
[1760953749017,2.7,192.93,192.89,1.42]
[1760953750215,2.7,192.93,192.88,4.6646]
[1760953750422,7.3626,192.97,192.89,1.42]
[1760953750623,7.3626,192.97,192.89,6.0843]
[1760953751333,7.3626,192.97,192.9,4.6641]
[1760953751527,2.7,192.97,192.91,1.42]
[1760953751930,2.7,192.96,192.88,42.7647]
[1760953752235,2.7,192.96,192.89,1.42]
[1760953754036,2.7,192.96,192.9,4.6641]
[1760953755326,7.4719,193.0,192.88,38.32]
[1760953755525,2.81,193.0,192.89,1.41]
[1760953755931,4.6623,192.99,192.92,6.0736]
[1760953757542,2.68,192.98,192.92,6.0736]
[1760953757732,2.68,193.03,192.83,1.42]
[1760953757935,2.68,193.01,192.83,1.42]
[1760953758132,2.68,192.9,192.83,1.42]
[1760953758336,2.68,192.9,192.83,10.14]
[1760953758641,2.68,192.9,192.83,1.42]
[1760953758934,7.3436,192.93,192.83,1.42]
[1760953759134,2.68,192.93,192.85,1.42]
[1760953759440,2.68,192.93,192.87,4.6648]
[1760953759732,2.68,192.93,192.87,1.42]
[1760953760335,4.6625,192.98,192.89,1.42]
[1760953760540,2.68,192.97,192.89,1.42]
[1760953761038,2.68,192.97,192.89,6.0844]
[1760953761338,4.6627,192.97,192.89,6.0844]
[1760953761641,2.68,192.96,192.89,6.0844]
[1760953762337,2.68,193.02,192.84,1.42]
[1760953762539,29.68,193.02,192.84,1.42]
[1760953762743,2.68,193.0,192.84,1.42]
[1760953762941,2.68,192.94,192.84,1.42]
[1760953763345,2.68,192.94,192.85,1.42]
[1760953763638,27.0,193.02,192.86,30.12]
[1760953763946,2.68,193.01,192.87,1.42]